fUSD/lending_fUSD_20240223
["ID","MTS","AMOUNT","RATE_DAILY","PERIOD"]
[314972135,1708708254464,-4736.06516168,0.00027652,2]
[314972136,1708708254473,-150.0,0.00027661,2]
[314972137,1708708254482,-150.0,0.00027664,2]
[314972138,1708708254491,-517.56086826,0.00027671,2]
[314972139,1708708254501,-500.0,0.00027671,2]
[314972140,1708708254510,-519.19,0.00027671,2]
[314972141,1708708254523,-503.74,0.00027671,2]
[314972142,1708708254532,-500.0,0.00027671,2]
[314972143,1708708254541,-500.0,0.00027671,2]
[314972144,1708708254551,-500.0,0.00027671,2]
[314972145,1708708254560,-500.0,0.00027671,2]
[314972146,1708708254571,-366.14,0.00027671,2]
[314972147,1708708254580,-500.0,0.00027671,2]
[314972148,1708708254589,-500.0,0.00027671,2]
[314972149,1708708254599,-500.0,0.00027671,2]
[314972150,1708708254608,-647.92,0.00027671,2]
[314972151,1708708254619,-500.0,0.00027671,2]
[314972152,1708708254628,-500.0,0.00027671,2]
[314972153,1708708254638,-500.0,0.00027671,2]
[314972154,1708708254647,-500.0,0.00027671,2]
[314972155,1708708254656,-193.15292713,0.00027671,2]
[314972156,1708708254665,-518.18,0.00027671,2]
[314972157,1708708254674,-488.51158394,0.00027671,2]
[314972158,1708708254684,-500.0,0.00027671,2]
[314972159,1708708254693,-500.0,0.00027671,2]
[314972160,1708708254702,-500.0,0.00027671,2]
[314972161,1708708254711,-500.0,0.00027671,2]
[314972162,1708708254720,-500.0,0.00027671,2]
[314972163,1708708254729,-556.81,0.00027671,2]
[314972164,1708708254738,-500.0,0.00027671,2]
[314972165,1708708254748,-532.43412142,0.00027671,2]
[314972166,1708708254757,-500.0,0.00027671,2]
[314972167,1708708254768,-500.0,0.00027671,2]
[314972168,1708708254777,-500.0,0.00027671,2]
[314972169,1708708254786,-500.0,0.00027671,2]
[314972170,1708708254796,-500.0,0.00027671,2]
[314972171,1708708254805,-500.0,0.00027671,2]
[314972172,1708708254814,-576.47,0.00027671,2]
[314972173,1708708254823,-500.0,0.00027671,2]
[314972174,1708708254832,-998.18,0.00027671,2]
[314972175,1708708254841,-309.6639794,0.00027671,2]
[314972176,1708708254851,-500.0,0.00027671,2]
[314972177,1708708254860,-355.77622882,0.00027671,2]
[314972178,1708708254870,-500.0,0.00027671,2]
[314972179,1708708254879,-500.0,0.00027671,2]
[314972180,1708708254888,-500.0,0.00027671,2]
[314972181,1708708254897,-500.0,0.00027671,2]
[314972182,1708708254907,-615.06350714,0.00027671,2]
[314972183,1708708254916,-478.61598238,0.00027671,2]
[314972184,1708708254925,-500.0,0.00027671,2]
[314972185,1708708254934,-521.42,0.00027671,2]
[314972186,1708708254943,-684.37,0.00027671,2]
[314972187,1708708254952,-500.0,0.00027671,2]
[314972188,1708708254961,-674.6,0.00027671,2]
[314972189,1708708254970,-500.0,0.00027671,2]
[314972190,1708708254979,-500.0,0.00027671,2]
[314972191,1708708254988,-500.0,0.00027671,2]
[314972192,1708708254997,-500.0,0.00027671,2]
[314972193,1708708255008,-500.0,0.00027671,2]
[314972194,1708708255018,-1130.32,0.00027671,2]
[314972195,1708708255027,-500.0,0.00027671,2]
[314972196,1708708255036,-1732.27,0.00027671,2]
[314972197,1708708255045,-934.36,0.00027671,2]
[314972198,1708708255054,-500.0,0.00027671,2]
[314972199,1708708255064,-500.0,0.00027671,2]
[314972200,1708708255073,-1204.12,0.00027671,2]
[314972201,1708708255082,-500.0,0.00027671,2]
[314972202,1708708255091,-500.0,0.00027671,2]
[314972203,1708708255101,-500.0,0.00027671,2]
[314972204,1708708255110,-500.0,0.00027671,2]
[314972205,1708708255118,-500.0,0.00027671,2]
[314972206,1708708255127,-500.0,0.00027671,2]
[314972207,1708708255136,-500.0,0.00027671,2]
[314972208,1708708255145,-500.0,0.00027671,2]
[314972209,1708708255155,-732.51,0.00027671,2]
[314972210,1708708255164,-1076.17,0.00027671,2]
[314972211,1708708255173,-1624.92,0.00027671,2]
[314972212,1708708255182,-1776.01,0.00027671,2]
[314972213,1708708255191,-500.0,0.00027671,2]
[314972214,1708708255201,-500.0,0.00027671,2]
[314972215,1708708255210,-500.0,0.00027671,2]
[314972216,1708708255220,-500.0,0.00027671,2]
[314972217,1708708255229,-629.8,0.00027671,2]
[314972218,1708708255238,-500.0,0.00027671,2]
[314972219,1708708255248,-500.0,0.00027671,2]
[314972220,1708708255257,-500.0,0.00027671,2]
[314972221,1708708255268,-500.0,0.00027671,2]
[314972222,1708708255278,-1789.17,0.00027671,2]
[314972223,1708708255287,-500.0,0.00027671,2]
[314972224,1708708255296,-500.0,0.00027671,2]
[314972225,1708708255305,-1115.24,0.00027671,2]
[314972226,1708708255314,-1141.39,0.00027671,2]
[314972227,1708708255323,-500.0,0.00027671,2]
[314972228,1708708255332,-500.0,0.00027671,2]
[314972229,1708708255341,-2038.67,0.00027671,2]
[314972230,1708708255350,-573.83,0.00027671,2]
[314972231,1708708255358,-500.0,0.00027671,2]
[314972232,1708708255367,-963.44,0.00027671,2]
[314972233,1708708255376,-329.9,0.00027671,2]
[314972234,1708708255385,-500.0,0.00027671,2]
[314972235,1708708255395,-500.0,0.00027671,2]
[314972236,1708708255404,-678.01,0.00027671,2]
[314972237,1708708255413,-3143.61,0.00027671,2]
[314972238,1708708255422,-500.0,0.00027671,2]
[314972239,1708708255432,-500.0,0.00027671,2]
[314972240,1708708255441,-500.0,0.00027671,2]
[314972241,1708708255450,-500.0,0.00027671,2]
[314972242,1708708255459,-500.0,0.00027671,2]
[314972243,1708708255468,-579.45,0.00027671,2]
[314972244,1708708255477,-500.0,0.00027671,2]
[314972245,1708708255486,-500.0,0.00027671,2]
[314972246,1708708255495,-500.0,0.00027671,2]
[314972247,1708708255505,-150.0,0.00027677,2]
[314972248,1708708255516,-666.36,0.00027714,2]
[314972249,1708708255525,-150.0,0.00027714,2]
[314972250,1708708255535,-150.0,0.00027725,2]
[314972251,1708708255544,-150.0,0.00027726,2]
[314972252,1708708255553,-740.01,0.0002773,2]
[314972253,1708708255562,-150.0,0.00027736,2]
[314972254,1708708255571,-200000.0,0.00027761,7]
[314972255,1708708255582,-1326.15049843,0.00027766,2]
[314972256,1708708255591,-200.0,0.000278,2]
[314972257,1708708255600,-150.0,0.00027803,2]
[314972258,1708708255610,-150.0,0.00027804,2]
[314972259,1708708255619,-500.0,0.00027808,2]
[314972260,1708708255628,-500.0,0.00027808,2]
[314972261,1708708255638,-500.0,0.00027808,2]
[314972262,1708708255647,-500.0,0.00027808,2]
[314972263,1708708255656,-500.0,0.00027808,2]
[314972264,1708708255665,-500.0,0.00027808,2]
[314972265,1708708255674,-500.0,0.00027808,2]
[314972266,1708708255683,-499.52686288,0.00027808,2]
[314972267,1708708255693,-500.0,0.00027808,2]
[314972268,1708708255702,-500.0,0.00027808,2]
[314972269,1708708255713,-518.18,0.00027808,2]
[314972270,1708708255722,-500.0,0.00027808,2]
[314972271,1708708255731,-521.62473141,0.00027808,2]
[314972272,1708708255741,-536.74,0.00027808,2]
[314972273,1708708255750,-500.0,0.00027808,2]
[314972274,1708708255759,-556.81,0.00027808,2]
[314972275,1708708255771,-500.0,0.00027808,2]
[314972276,1708708255781,-500.0,0.00027808,2]
[314972277,1708708255790,-158.91,0.00027808,2]
[314972278,1708708255799,-500.0,0.00027808,2]
[314972279,1708708255808,-500.0,0.00027808,2]
[314972280,1708708255817,-576.47,0.00027808,2]
[314972281,1708708255826,-500.0,0.00027808,2]
[314972282,1708708255835,-998.18,0.00027808,2]
[314972283,1708708255845,-500.0,0.00027808,2]
[314972284,1708708255854,-500.0,0.00027808,2]
[314972285,1708708255863,-500.0,0.00027808,2]
[314972286,1708708255872,-500.0,0.00027808,2]
[314972287,1708708255881,-500.0,0.00027808,2]
[314972288,1708708255890,-500.0,0.00027808,2]
[314972289,1708708255899,-521.42,0.00027808,2]
[314972290,1708708255909,-684.37,0.00027808,2]
[314972291,1708708255918,-500.0,0.00027808,2]
[314972292,1708708255927,-674.6,0.00027808,2]
[314972293,1708708255936,-500.0,0.00027808,2]
[314972294,1708708255945,-500.0,0.00027808,2]
[314972295,1708708255954,-256.9041053,0.00027808,2]
[314972296,1708708255963,-500.0,0.00027808,2]
[314972297,1708708255972,-500.0,0.00027808,2]
[314972298,1708708255981,-1130.32,0.00027808,2]
[314972299,1708708255990,-500.0,0.00027808,2]
[314972300,1708708255999,-1732.27,0.00027808,2]
[314972301,1708708256008,-934.36,0.00027808,2]
[314972302,1708708256019,-500.0,0.00027808,2]
[314972303,1708708256027,-500.0,0.00027808,2]
[314972304,1708708256036,-1204.12,0.00027808,2]
[314972305,1708708256045,-500.0,0.00027808,2]
[314972306,1708708256054,-202.81,0.00027808,2]
[314972307,1708708256063,-557.15204429,0.00027808,2]
[314972308,1708708256072,-204.9519271,0.00027808,2]
[314972309,1708708256081,-500.0,0.00027808,2]
[314972310,1708708256091,-500.0,0.00027808,2]
[314972311,1708708256100,-500.0,0.00027808,2]
[314972312,1708708256109,-732.51,0.00027808,2]
[314972313,1708708256118,-1076.17,0.00027808,2]
[314972314,1708708256127,-1624.92,0.00027808,2]
[314972315,1708708256136,-1776.01,0.00027808,2]
[314972316,1708708256145,-285.38317334,0.00027808,2]
[314972317,1708708256154,-517.06,0.00027808,2]
[314972318,1708708256163,-579.1391237,0.00027808,2]
[314972319,1708708256173,-629.8,0.00027808,2]
[314972320,1708708256181,-389.48398577,0.00027808,2]
[314972321,1708708256190,-500.0,0.00027808,2]
[314972322,1708708256199,-500.0,0.00027808,2]
[314972323,1708708256209,-500.0,0.00027808,2]
[314972324,1708708256218,-500.0,0.00027808,2]
[314972325,1708708256228,-1789.17,0.00027808,2]
[314972326,1708708256237,-500.0,0.00027808,2]
[314972327,1708708256246,-1115.24,0.00027808,2]
[314972328,1708708256255,-1141.39,0.00027808,2]
[314972329,1708708256267,-310.47,0.00027808,2]
[314972330,1708708256276,-500.0,0.00027808,2]
[314972331,1708708256286,-2038.67,0.00027808,2]
[314972332,1708708256295,-573.83,0.00027808,2]
[314972333,1708708256304,-500.0,0.00027808,2]
[314972334,1708708256313,-963.44,0.00027808,2]
[314972335,1708708256322,-299.52,0.00027808,2]
[314972336,1708708256331,-500.0,0.00027808,2]
[314972337,1708708256340,-678.01,0.00027808,2]
[314972338,1708708256350,-3143.61,0.00027808,2]
[314972339,1708708256360,-500.0,0.00027808,2]
[314972340,1708708256369,-500.0,0.00027808,2]
[314972341,1708708256380,-202.34223371,0.00027808,2]
[314972342,1708708256390,-502.72479742,0.00027808,2]
[314972343,1708708256400,-579.45,0.00027808,2]
[314972344,1708708256410,-500.0,0.00027808,2]
[314972345,1708708256419,-500.0,0.00027808,2]
[314972346,1708708256429,-500.0,0.00027808,2]
[314972347,1708708256439,-150.0,0.00027858,2]
[314972348,1708708256449,-666.36,0.00027872,2]
[314972349,1708708256459,-11065.66378955,0.00027873,2]
[314972350,1708708256469,-150.0,0.00027884,2]
[314972351,1708708256478,-4736.06516168,0.00027888,2]
[314972352,1708708256487,-1416.03548678,0.00027893,2]
[314972353,1708708256496,-2000.0,0.000279,2]
[314972354,1708708256506,-30158.05772281,0.00027911,2]
[314972355,1708708256520,-150.0,0.00027932,2]
[314972356,1708708256531,-150.0,0.00027938,2]
[314972357,1708708256546,-249.18066457,0.00027944,2]
[314972358,1708708256556,-500.0,0.00027945,2]
[314972359,1708708256566,-500.0,0.00027945,2]
[314972360,1708708256576,-500.0,0.00027945,2]
[314972361,1708708256586,-198.25762288,0.00027945,2]
[314972362,1708708256595,-500.0,0.00027945,2]
[314972363,1708708256604,-348.03646063,0.00027945,2]
[314972364,1708708256614,-500.0,0.00027945,2]
[314972365,1708708256624,-500.0,0.00027945,2]
[314972366,1708708256633,-518.18,0.00027945,2]
[314972367,1708708256642,-500.0,0.00027945,2]
[314972368,1708708256651,-354.3,0.00027945,2]
[314972369,1708708256660,-556.81,0.00027945,2]
[314972370,1708708256670,-500.0,0.00027945,2]
[314972371,1708708256679,-500.0,0.00027945,2]
[314972372,1708708256689,-500.0,0.00027945,2]
[314972373,1708708256698,-500.0,0.00027945,2]
[314972374,1708708256709,-576.47,0.00027945,2]
[314972375,1708708256719,-500.0,0.00027945,2]
[314972376,1708708256728,-998.18,0.00027945,2]
[314972377,1708708256738,-500.0,0.00027945,2]
[314972378,1708708256747,-341.99,0.00027945,2]
[314972379,1708708256757,-500.0,0.00027945,2]
[314972380,1708708256771,-500.0,0.00027945,2]
[314972381,1708708256781,-521.42,0.00027945,2]
[314972382,1708708256791,-684.37,0.00027945,2]
[314972383,1708708256801,-500.0,0.00027945,2]
[314972384,1708708256811,-674.6,0.00027945,2]
[314972385,1708708256822,-500.0,0.00027945,2]
[314972386,1708708256831,-500.0,0.00027945,2]
[314972387,1708708256841,-500.0,0.00027945,2]
[314972388,1708708256852,-1130.32,0.00027945,2]
[314972389,1708708256862,-500.0,0.00027945,2]
[314972390,1708708256872,-1732.27,0.00027945,2]
[314972391,1708708256881,-934.36,0.00027945,2]
[314972392,1708708256891,-500.0,0.00027945,2]
[314972393,1708708256901,-500.0,0.00027945,2]
[314972394,1708708256911,-1204.12,0.00027945,2]
[314972395,1708708256921,-500.0,0.00027945,2]
[314972396,1708708256931,-500.0,0.00027945,2]
[314972397,1708708256941,-529.08,0.00027945,2]
[314972398,1708708256951,-500.0,0.00027945,2]
[314972399,1708708256961,-732.51,0.00027945,2]
[314972400,1708708256970,-1076.17,0.00027945,2]
[314972401,1708708256980,-1624.92,0.00027945,2]
[314972402,1708708256989,-1776.01,0.00027945,2]
[314972403,1708708256999,-629.8,0.00027945,2]
[314972404,1708708257008,-500.0,0.00027945,2]
[314972405,1708708257020,-500.0,0.00027945,2]
[314972406,1708708257030,-500.0,0.00027945,2]
[314972407,1708708257040,-1789.17,0.00027945,2]
[314972408,1708708257049,-1115.24,0.00027945,2]
[314972409,1708708257059,-1141.39,0.00027945,2]
[314972410,1708708257069,-500.0,0.00027945,2]
[314972411,1708708257079,-2038.67,0.00027945,2]
[314972412,1708708257089,-573.83,0.00027945,2]
[314972413,1708708257098,-437.61089818,0.00027945,2]
[314972414,1708708257108,-963.44,0.00027945,2]
[314972415,1708708257118,-500.0,0.00027945,2]
[314972416,1708708257127,-678.01,0.00027945,2]
[314972417,1708708257137,-3143.61,0.00027945,2]
[314972418,1708708257147,-500.0,0.00027945,2]
[314972419,1708708257157,-579.45,0.00027945,2]
[314972420,1708708257167,-500.0,0.00027945,2]
[314972421,1708708257177,-500.0,0.00027945,2]
[314972422,1708708257186,-500.0,0.00027945,2]
[314972423,1708708257197,-150.0,0.00027956,2]
[314972424,1708708257206,-150.0,0.00027995,2]
[314972425,1708708257216,-3809.44813425,0.00028,2]
[314972426,1708708257226,-4000.0,0.00028,2]
[314972427,1708708257235,-1328.22794845,0.00028006,2]
[314972428,1708708257245,-150.0,0.00028009,2]
[314972429,1708708257255,-1733.96185551,0.0002801,2]
[314972430,1708708257266,-1416.03548678,0.00028013,2]
[314972431,1708708257276,-150.0,0.00028018,2]
[314972432,1708708257285,-153.50007692,0.00028028,2]
[314972433,1708708257295,-150.0,0.00028029,2]
[314972434,1708708257304,-666.36,0.0002803,2]
[314972435,1708708257314,-150.0,0.00028032,2]
[314972436,1708708257323,-766.50211336,0.00028033,3]
[314972437,1708708257333,-153.50007692,0.00028035,2]
[314972438,1708708257343,-154.02083881,0.00028036,2]
[314972439,1708708257353,-151.54644394,0.00028037,2]
[314972440,1708708257362,-150.0,0.00028051,2]
[314972441,1708708257371,-150.0,0.00028052,2]
[314972442,1708708257381,-150.0,0.00028066,2]
[314972443,1708708257391,-166.16201499,0.00028066,2]
[314972444,1708708257401,-150.0,0.00028069,2]
[314972445,1708708257410,-500.0,0.00028082,2]
[314972446,1708708257420,-500.0,0.00028082,2]
[314972447,1708708257430,-500.0,0.00028082,2]
[314972448,1708708257439,-500.0,0.00028082,2]
[314972449,1708708257449,-500.0,0.00028082,2]
[314972450,1708708257458,-518.18,0.00028082,2]
[314972451,1708708257468,-489.07,0.00028082,2]
[314972452,1708708257479,-556.81,0.00028082,2]
[314972453,1708708257489,-500.0,0.00028082,2]
[314972454,1708708257498,-500.0,0.00028082,2]
[314972455,1708708257508,-500.0,0.00028082,2]
[314972456,1708708257521,-415.01,0.00028082,2]
[314972457,1708708257531,-576.47,0.00028082,2]
[314972458,1708708257543,-500.0,0.00028082,2]
[314972459,1708708257552,-998.18,0.00028082,2]
[314972460,1708708257562,-500.0,0.00028082,2]
[314972461,1708708257573,-500.0,0.00028082,2]
[314972462,1708708257582,-500.0,0.00028082,2]
[314972463,1708708257592,-521.42,0.00028082,2]
[314972464,1708708257601,-684.37,0.00028082,2]
[314972465,1708708257611,-500.0,0.00028082,2]
[314972466,1708708257621,-674.6,0.00028082,2]
[314972467,1708708257631,-500.0,0.00028082,2]
[314972468,1708708257652,-557.65,0.00028082,2]
[314972469,1708708257663,-1130.32,0.00028082,2]
[314972470,1708708257674,-500.0,0.00028082,2]
[314972471,1708708257684,-1732.27,0.00028082,2]
[314972472,1708708257695,-934.36,0.00028082,2]
[314972473,1708708257706,-500.0,0.00028082,2]
[314972474,1708708257717,-500.0,0.00028082,2]
[314972475,1708708257727,-1204.12,0.00028082,2]
[314972476,1708708257737,-500.0,0.00028082,2]
[314972477,1708708257747,-500.0,0.00028082,2]
[314972478,1708708257757,-732.51,0.00028082,2]
[314972479,1708708257769,-1076.17,0.00028082,2]
[314972480,1708708257779,-1624.92,0.00028082,2]
[314972481,1708708257788,-1776.01,0.00028082,2]
[314972482,1708708257798,-629.8,0.00028082,2]
[314972483,1708708257808,-500.0,0.00028082,2]
[314972484,1708708257818,-500.0,0.00028082,2]
[314972485,1708708257828,-1789.17,0.00028082,2]
[314972486,1708708257838,-1115.24,0.00028082,2]
[314972487,1708708257849,-1141.39,0.00028082,2]
[314972488,1708708257859,-500.0,0.00028082,2]
[314972489,1708708257870,-2038.67,0.00028082,2]
[314972490,1708708257881,-573.83,0.00028082,2]
[314972491,1708708257891,-963.44,0.00028082,2]
[314972492,1708708257902,-678.01,0.00028082,2]
[314972493,1708708257912,-3143.61,0.00028082,2]
[314972494,1708708257922,-500.0,0.00028082,2]
[314972495,1708708257932,-579.45,0.00028082,2]
[314972496,1708708257942,-500.0,0.00028082,2]
[314972497,1708708257952,-500.0,0.00028082,2]
[314972498,1708708257962,-500.0,0.00028082,2]
[314972499,1708708257972,-150.0,0.00028085,2]
[314972500,1708708257982,-4736.06516168,0.00028125,2]
[314972501,1708708257992,-156.35719251,0.00028129,2]
[314972502,1708708258002,-258.46318169,0.00028131,2]
[314972503,1708708258012,-15390.9,0.00028132,2]
[314972504,1708708258024,-15390.9,0.00028132,2]
[314972505,1708708258034,-15390.9,0.00028132,2]
[314972506,1708708258044,-15390.9,0.00028132,2]
[314972507,1708708258055,-15390.9,0.00028132,2]
[314972508,1708708258065,-15390.9,0.00028132,2]
[314972509,1708708258076,-15390.9,0.00028132,2]
[314972510,1708708258086,-15390.9,0.00028132,2]
[314972511,1708708258096,-15390.9,0.00028132,2]
[314972512,1708708258107,-15390.9,0.00028132,2]
[314972513,1708708258117,-15390.9,0.00028132,2]
[314972514,1708708258127,-15390.9,0.00028132,2]
[314972515,1708708258137,-15390.9,0.00028132,2]
[314972516,1708708258147,-15390.9,0.00028132,2]
[314972517,1708708258157,-15390.9,0.00028132,2]
[314972518,1708708258166,-15390.96743699,0.00028132,2]
[314972519,1708708258176,-151.0,0.00028132,7]
[314972520,1708708258186,-151.0,0.00028132,7]
[314972521,1708708258196,-150.0,0.00028141,2]
[314972522,1708708258205,-150.0,0.00028141,2]
[314972523,1708708258215,-150.0,0.00028142,2]
[314972524,1708708258226,-255.02542379,0.00028142,2]
[314972525,1708708258236,-157.08374947,0.00028149,2]
[314972526,1708708258246,-150.0,0.00028152,2]
[314972527,1708708258256,-150.0,0.00028163,2]
[314972528,1708708258267,-687.74315006,0.00028164,2]
[314972529,1708708258277,-152.6064863,0.00028164,2]
[314972530,1708708258286,-167.02514081,0.0002817,2]
[314972531,1708708258295,-512.0,0.00028171,2]
[314972532,1708708258305,-150.0,0.00028173,2]
[314972533,1708708258315,-666.36,0.00028189,2]
[314972534,1708708258325,-192.59378234,0.00028194,2]
[314972535,1708708258339,-150.0,0.00028198,2]
[314972536,1708708258349,-444.0,0.000282,2]
[314972537,1708708258359,-150.0,0.00028209,2]
[314972538,1708708258369,-150.0,0.00028214,2]
[314972539,1708708258379,-1733.96185551,0.00028216,2]
[314972540,1708708258390,-500.0,0.00028219,2]
[314972541,1708708258400,-500.0,0.00028219,2]
[314972542,1708708258410,-500.0,0.00028219,2]
[314972543,1708708258421,-500.0,0.00028219,2]
[314972544,1708708258431,-500.0,0.00028219,2]
[314972545,1708708258441,-518.18,0.00028219,2]
[314972546,1708708258451,-556.81,0.00028219,2]
[314972547,1708708258461,-500.0,0.00028219,2]
[314972548,1708708258471,-500.0,0.00028219,2]
[314972549,1708708258482,-500.0,0.00028219,2]
[314972550,1708708258492,-576.47,0.00028219,2]
[314972551,1708708258503,-500.0,0.00028219,2]
[314972552,1708708258513,-998.18,0.00028219,2]
[314972553,1708708258530,-330.28410167,0.00028219,2]
[314972554,1708708258539,-500.0,0.00028219,2]
[314972555,1708708258549,-500.0,0.00028219,2]
[314972556,1708708258559,-521.42,0.00028219,2]
[314972557,1708708258571,-684.37,0.00028219,2]
[314972558,1708708258581,-480.23171651,0.00028219,2]
[314972559,1708708258592,-674.6,0.00028219,2]
[314972560,1708708258603,-500.0,0.00028219,2]
[314972561,1708708258614,-1130.32,0.00028219,2]
[314972562,1708708258625,-212.06030771,0.00028219,2]
[314972563,1708708258636,-1732.27,0.00028219,2]
[314972564,1708708258646,-934.36,0.00028219,2]
[314972565,1708708258657,-500.0,0.00028219,2]
[314972566,1708708258668,-500.0,0.00028219,2]
[314972567,1708708258678,-1204.12,0.00028219,2]
[314972568,1708708258688,-500.0,0.00028219,2]
[314972569,1708708258699,-500.0,0.00028219,2]
[314972570,1708708258711,-732.51,0.00028219,2]
[314972571,1708708258722,-1076.17,0.00028219,2]
[314972572,1708708258732,-1624.92,0.00028219,2]
[314972573,1708708258742,-1776.01,0.00028219,2]
[314972574,1708708258752,-629.8,0.00028219,2]
[314972575,1708708258762,-500.0,0.00028219,2]
[314972576,1708708258776,-1789.17,0.00028219,2]
[314972577,1708708258786,-500.0,0.00028219,2]
[314972578,1708708258796,-1115.24,0.00028219,2]
[314972579,1708708258806,-1141.39,0.00028219,2]
[314972580,1708708258816,-500.0,0.00028219,2]
[314972581,1708708258826,-2038.67,0.00028219,2]
[314972582,1708708258836,-573.83,0.00028219,2]
[314972583,1708708258846,-963.44,0.00028219,2]
[314972584,1708708258857,-678.01,0.00028219,2]
[314972585,1708708258868,-3143.61,0.00028219,2]
[314972586,1708708258878,-500.0,0.00028219,2]
[314972587,1708708258888,-579.45,0.00028219,2]
[314972588,1708708258898,-500.0,0.00028219,2]
[314972589,1708708258908,-500.0,0.00028219,2]
[314972590,1708708258918,-500.0,0.00028219,2]
[314972591,1708708258929,-153.74027557,0.00028228,2]
[314972592,1708708258939,-150.0,0.0002823,2]
[314972593,1708708258949,-167.02514081,0.00028232,2]
[314972594,1708708258959,-155.14487318,0.00028236,2]
[314972595,1708708258969,-150.0,0.00028242,2]
[314972596,1708708258980,-687.74315006,0.00028248,2]
[314972597,1708708258990,-155.14487318,0.00028257,2]
[314972598,1708708259000,-1733.96185551,0.00028259,2]
[314972599,1708708259011,-153.50007692,0.00028263,2]
[314972600,1708708259024,-150.0,0.00028265,2]
[314972601,1708708259034,-150.0,0.00028265,2]
[314972602,1708708259044,-150.0,0.00028277,2]
[314972603,1708708259059,-159.51672722,0.0002828,2]
[314972604,1708708259069,-163.70167317,0.0002828,2]
[314972605,1708708259079,-150.0,0.00028282,2]
[314972606,1708708259089,-150.0,0.00028292,2]
[314972607,1708708259099,-192.59378234,0.00028303,2]
[314972608,1708708259109,-204.0,0.00028313,6]
[314972609,1708708259119,-169.94,0.00028316,2]
[314972610,1708708259129,-153.50007692,0.00028318,2]
[314972611,1708708259139,-192.59378234,0.0002832,2]
[314972612,1708708259150,-150.0,0.00028322,2]
[314972613,1708708259437,-150.0,0.00028331,2]
[314972614,1708708259451,-150.0,0.00028338,2]
[314972615,1708708259460,-150.0,0.00028343,2]
[314972616,1708708259470,-666.36,0.00028347,2]
[314972617,1708708259479,-159.51672722,0.00028349,2]
[314972618,1708708259489,-150.0,0.00028355,2]
[314972619,1708708259502,-500.0,0.00028356,2]
[314972620,1708708259513,-500.0,0.00028356,2]
[314972621,1708708259526,-500.0,0.00028356,2]
[314972622,1708708259537,-500.0,0.00028356,2]
[314972623,1708708259546,-500.0,0.00028356,2]
[314972624,1708708259556,-518.18,0.00028356,2]
[314972625,1708708259566,-556.81,0.00028356,2]
[314972626,1708708259576,-500.0,0.00028356,2]
[314972627,1708708259585,-500.0,0.00028356,2]
[314972628,1708708259595,-500.0,0.00028356,2]
[314972629,1708708259604,-576.47,0.00028356,2]
[314972630,1708708259615,-500.0,0.00028356,2]
[314972631,1708708259625,-998.18,0.00028356,2]
[314972632,1708708259634,-500.0,0.00028356,2]
[314972633,1708708259644,-500.0,0.00028356,2]
[314972634,1708708259654,-521.42,0.00028356,2]